bitfinex/quotes_SOLUSD_20250228
["timestamp","ask_amount","ask_price","bid_price","bid_amount"]
[1740745036135,18.2033,134.59,134.58,12.37592737]
[1740745036307,25.7633,134.59,134.58,5.70932737]
[1740745036513,25.7633,134.59,134.58,43.0177643]
[1740745037115,25.7633,134.59,134.58,37.30843693]
[1740745037431,25.7633,134.59,134.58,48.44075784]
[1740745037838,126.81064602,134.61,134.58,11.13232091]
[1740745038014,18.79181043,134.59,134.58,11.13232091]
[1740745038209,0.14216157,134.58,134.57,48.48454208]
[1740745038437,82.94216157,134.58,134.57,48.48454208]
[1740745038944,82.94216157,134.58,134.57,11.13232091]
[1740745039339,86.39406157,134.58,134.57,4.46572091]
[1740745039629,0.03,134.59,134.58,4.14216157]
[1740745039834,3.4519,134.76,134.58,314.0]
[1740745040011,7.506,134.74,134.58,314.0]
[1740745040332,18.79181043,134.73,134.58,349.30843693]
[1740745040526,18.79181043,134.71,134.58,349.30843693]
[1740745040731,18.79181043,134.69,134.58,349.30843693]
[1740745040930,0.14216157,134.67,134.58,349.30843693]
[1740745041238,0.14216157,134.67,134.6,37.52190724]
[1740745041429,0.14216157,134.67,134.59,37.39024865]
[1740745041816,45.66650247,134.69,134.58,351.30843693]
[1740745042021,7.506,134.68,134.61,37.85915309]
[1740745042308,45.66650247,134.69,134.61,39.85915309]
[1740745042512,45.66650247,134.69,134.61,37.85915309]
[1740745042730,20.0,134.64,134.6,37.52190724]
[1740745042934,20.0,134.64,134.59,2.0]
[1740745043137,20.0,134.64,134.6,37.52190724]
[1740745043333,3.7135,134.65,134.61,62.16637997]
[1740745043639,26.4405,134.7,134.61,62.16637997]
[1740745043825,0.14216157,134.69,134.61,62.16637997]
[1740745044025,26.0665,134.7,134.61,62.16637997]
[1740745044324,18.5605,134.7,134.6,2.0]
[1740745044530,12.9927,134.69,134.61,2.0]
[1740745044835,125.08270759,134.71,134.61,2.0]
[1740745045031,132.94270759,134.71,134.61,2.0]
[1740745046135,9.2805,134.69,134.63,2.0]
[1740745046516,3.7119,134.7,134.64,2.0]
[1740745046721,3.7119,134.7,134.64,4.0]
[1740745046935,3.7119,134.7,134.66,2.0]
[1740745047116,3.7119,134.7,134.67,2.0]
[1740745048049,0.14216157,134.76,134.67,2.0]
[1740745048248,31.5373,134.76,134.67,2.0]
[1740745048743,0.14216157,134.75,134.65,2.0]
[1740745049117,0.14216157,134.75,134.64,2.0]
[1740745049325,101.59181043,134.75,134.63,2.0]
[1740745049526,101.59181043,134.75,134.62,11.84]
[1740745049748,101.59181043,134.75,134.62,7.84]
[1740745049952,102.96322185,134.75,134.62,7.84]
[1740745050152,0.14216157,134.73,134.62,7.84]
[1740745050446,18.79181043,134.71,134.62,7.84]
[1740745051441,0.14216157,134.71,134.63,4.0]
[1740745052326,10.3934,134.7,134.63,4.0]
[1740745053151,10.3934,134.7,134.64,2.0]
[1740745053352,10.3934,134.7,134.65,2.0]
[1740745053653,10.3934,134.7,134.65,4.0]
[1740745053835,10.3934,134.7,134.65,2.0]
[1740745054042,10.3934,134.7,134.64,4.0]
[1740745054244,10.3934,134.7,134.64,2.0]
[1740745054569,0.14216157,134.73,134.64,2.0]
[1740745055060,20.79181043,134.71,134.61,7.76]
[1740745055235,2.0,134.67,134.58,0.063]
[1740745055629,20.79181043,134.66,134.58,0.063]
[1740745055829,22.79181043,134.66,134.58,0.063]
[1740745056638,18.79181043,134.66,134.58,0.063]
[1740745056849,2.14216157,134.67,134.58,0.063]
[1740745057037,4.0,134.66,134.58,0.063]
[1740745057361,2.0,134.66,134.58,0.063]
[1740745057562,4.0,134.66,134.58,0.063]
[1740745057860,2.14216157,134.63,134.58,0.0001]
[1740745058037,0.14216157,134.61,134.58,0.0001]
[1740745058664,2.9717,134.6,134.58,0.0001]
[1740745058963,0.14216157,134.59,134.58,0.0001]
[1740745059158,22.79181043,134.59,134.5,7.5415]
[1740745059345,0.14216157,134.58,134.5,7.5415]
[1740745059531,0.14216157,134.56,134.5,7.5415]
[1740745059734,0.14216157,134.54,134.45,13.9644]
[1740745060163,37.73877801,134.54,134.45,13.9644]
[1740745060753,37.36924754,134.52,134.45,13.9644]
[1740745060962,37.36924754,134.52,134.45,325.9644]
[1740745061258,10.4065,134.53,134.44,18.71264886]
[1740745061460,4.94274423,134.51,134.44,0.063]
[1740745061665,4.94274423,134.51,134.43,18.64964886]
[1740745061839,4.94274423,134.51,134.41,0.14216157]
[1740745062040,11.21647862,134.45,134.44,312.0]
[1740745062246,7.88327862,134.45,134.44,0.14216157]
[1740745062541,2.0,134.52,134.41,181.07097521]
[1740745062747,2.0,134.51,134.44,0.063]
[1740745062932,2.0,134.51,134.44,9.36410476]
[1740745063136,4.2298,134.54,134.45,20.0]
[1740745063451,4.2298,134.54,134.48,312.0]
[1740745063452,2.0,134.54,134.48,312.0]
[1740745063648,2.0,134.55,134.49,7.74]
[1740745064165,4.0,134.55,134.49,7.74]
[1740745064535,2.0,134.54,134.49,7.74]
[1740745065355,2.0,134.52,134.49,7.74]
[1740745065740,2.0,134.52,134.47,14.3815]
[1740745066558,4.2301,134.52,134.47,14.3815]
[1740745067246,2.0,134.51,134.47,14.3815]
[1740745067452,2.0,134.51,134.47,326.3815]
[1740745067650,4.23,134.53,134.47,326.3815]
[1740745067854,4.23,134.53,134.48,20.35262647]
[1740745068451,2.2298,134.54,134.48,27.78832647]
[1740745068645,6.2298,134.54,134.48,1.56081604]
[1740745068841,2.0,134.52,134.47,14.3815]
[1740745069235,2.0,134.52,134.47,23.37897513]
[1740745069438,2.0,134.53,134.48,18.79181043]
[1740745069753,2.0,134.53,134.47,15.94247513]
[1740745069942,2.0,134.53,134.47,14.3815]
[1740745069943,4.0,134.53,134.47,14.3815]
[1740745070144,2.0,134.52,134.47,14.3815]
[1740745070341,4.0,134.52,134.47,14.3815]
[1740745070548,2.0,134.49,134.47,7.72]
[1740745071567,2.0,134.49,134.44,537.823]
[1740745072667,2.2307,134.49,134.44,233.2611]
[1740745072844,2.2307,134.49,134.44,225.823]
[1740745073051,2.0,134.5,134.44,233.2612]
[1740745073252,4.2305,134.5,134.44,233.2612]
[1740745073659,4.2305,134.5,134.44,225.823]
[1740745074265,2.0,134.49,134.44,225.823]
[1740745074440,2.2308,134.48,134.44,225.823]
[1740745074641,2.0,134.47,134.44,225.803]
[1740745074947,2.0,134.46,134.44,225.803]
[1740745075148,4.0,134.46,134.44,81.663]
[1740745075356,2.0,134.45,134.44,81.663]
[1740745077059,4.2313,134.45,134.44,81.663]
[1740745078868,6.2313,134.45,134.44,81.663]
[1740745079774,6.2313,134.45,134.44,0.063]
[1740745081369,6.2313,134.45,134.44,0.0001]
[1740745085956,6.2613,134.45,134.44,0.0001]
[1740745087088,4.2613,134.45,134.44,0.0001]
[1740745087253,2.2613,134.45,134.44,0.0001]
[1740745087454,4.2613,134.45,134.44,0.0001]
[1740745087679,4.2613,134.45,134.44,81.6001]
[1740745088479,6.2613,134.45,134.44,81.6001]
[1740745088872,6.2613,134.45,134.44,54.8245]
[1740745089179,6.2613,134.45,134.44,28.0489]
[1740745091582,4.03,134.45,134.44,28.0489]
[1740745092580,5.5175,134.45,134.44,0.0001]
[1740745092769,24.30931043,134.45,134.44,0.0001]
[1740745092971,25.87518672,134.45,134.44,0.0001]
[1740745093588,29.59398672,134.45,134.34,81.6]
[1740745093772,1.4886,134.35,134.34,81.6]
[1740745094481,1.4886,134.35,134.32,218.1]
[1740745094482,2.0,134.33,134.32,218.1]
[1740745094879,2.0,134.33,134.32,81.6]
[1740745095491,4.0,134.33,134.32,81.6]
[1740745095778,5.4888,134.33,134.32,81.6]
[1740745096872,5.4886,134.35,134.32,81.6]
[1740745097071,2.0,134.34,134.32,81.6]
[1740745097366,4.0,134.34,134.32,81.6]
[1740745097982,5.4888,134.34,134.32,81.6]
[1740745098281,1.4888,134.34,134.32,81.6]
[1740745098786,3.4886,134.35,134.32,81.6]
[1740745098966,5.4886,134.35,134.32,81.6]
[1740745100297,2.0,134.36,134.32,81.6]
[1740745100981,2.0,134.37,134.32,218.1]
[1740745101170,2.0,134.38,134.33,7.42]
[1740745101375,2.0,134.39,134.33,7.42]
[1740745101691,4.0,134.38,134.33,319.42]
[1740745102390,2.0,134.37,134.33,319.42]
[1740745102987,4.0,134.37,134.33,319.42]
[1740745103186,2.0,134.36,134.33,319.42]
[1740745103484,2.0,134.36,134.31,7.5082]
[1740745103485,2.0,134.33,134.31,81.663]
[1740745105002,4.0,134.32,134.31,81.663]
[1740745106092,4.0,134.32,134.31,0.0001]
[1740745106404,4.0,134.31,134.3,0.0001]
[1740745106971,5.489,134.31,134.3,0.0001]
[1740745107179,88.289,134.31,134.3,0.0001]
[1740745108870,107.08081043,134.31,134.3,0.0001]
[1740745109075,114.46081043,134.31,134.3,0.0001]
[1740745109275,31.66081043,134.31,134.3,0.0001]
[1740745111380,12.869,134.31,134.3,0.0001]
[1740745111695,2.0,134.31,134.3,0.0001]
[1740745111874,4.0,134.31,134.3,0.0001]
[1740745112297,5.489,134.31,134.3,0.0001]
[1740745113774,4.0,134.31,134.3,0.0001]
[1740745114082,5.56587629,134.31,134.3,0.0001]
[1740745114406,7.05487629,134.31,134.3,0.0001]
[1740745115401,25.70452515,134.31,134.3,0.0001]
[1740745115976,25.84668672,134.31,134.3,0.0001]
[1740745117106,34.44118672,134.31,134.3,0.0001]
[1740745117314,36.44118672,134.31,134.3,0.0001]
[1740745118191,4.0,134.28,134.27,0.063]
[1740745118372,24.21552515,134.28,134.27,0.063]
[1740745118997,24.21552515,134.28,134.27,0.0001]
[1740745119681,24.35768672,134.28,134.27,0.0001]
[1740745119880,25.84708672,134.28,134.27,0.0001]
[1740745122509,25.84708672,134.28,134.18,0.063]
[1740745122510,4.0,134.19,134.18,0.063]
[1740745122887,2.0,134.19,134.18,0.063]
[1740745123304,4.0,134.19,134.18,0.063]
[1740745124209,5.4904,134.19,134.18,0.063]
[1740745128420,5.4904,134.19,134.18,0.0001]
[1740745128597,24.28221043,134.19,134.18,0.0001]
[1740745128924,22.64964886,134.17,134.16,0.0001]
[1740745129212,107.01552515,134.17,134.16,0.0001]
[1740745130029,2.0,134.14,134.13,9.785e-05]
[1740745130197,25.84858672,134.14,134.13,9.785e-05]
[1740745130823,33.16858672,134.14,134.13,9.785e-05]
[1740745131310,2.0,134.07,134.06,0.063]
[1740745131619,4.0,134.07,134.06,0.063]
[1740745131811,2.0,134.07,134.06,0.063]
[1740745132109,4.0,134.07,134.06,0.063]
[1740745132413,2.0,134.07,134.06,0.063]
[1740745132609,4.0,134.07,134.06,0.063]
[1740745132806,5.4917,134.07,134.06,0.063]
[1740745133012,2.0,134.07,134.06,0.063]
[1740745133212,4.0,134.07,134.06,0.063]
[1740745133807,4.0,134.1,134.06,81.663]
[1740745134409,2.0,134.1,134.06,81.663]
[1740745134611,2.0,134.1,134.06,89.1221]
[1740745134812,4.0,134.1,134.06,89.1221]
[1740745135025,4.0,134.12,134.06,225.6221]
[1740745135206,2.0,134.12,134.07,6.0722]
[1740745135607,4.0,134.12,134.07,6.0722]
[1740745135821,4.0,134.11,134.07,6.0722]
[1740745136016,2.0,134.09,134.07,6.0722]
[1740745136208,2.0,134.08,134.07,6.0722]
[1740745137013,4.0,134.09,134.07,318.0722]
[1740745138400,2.0,134.1,134.07,318.0722]
[1740745139916,2.0,134.09,134.07,6.0722]
[1740745140414,4.0,134.09,134.07,6.0722]
[1740745141726,4.0,134.1,134.07,6.0722]
[1740745142101,4.0,134.1,134.07,87.6722]
[1740745142922,4.0,134.1,134.07,399.6722]
[1740745144621,4.0,134.1,134.07,87.6722]
[1740745144822,2.0,134.1,134.07,87.6722]
[1740745145001,2.0,134.11,134.07,95.1308]
[1740745145197,2.0,134.12,134.07,95.1308]
[1740745145430,2.0,134.13,134.07,231.6308]
[1740745145610,2.0,134.12,134.07,231.6308]
[1740745145809,4.0,134.12,134.07,231.6308]
[1740745146148,4.0,134.11,134.07,224.1722]
[1740745146423,2.0,134.11,134.07,224.1722]
[1740745146723,2.0,134.12,134.07,231.6308]
[1740745146912,4.0,134.13,134.07,231.6308]
[1740745147125,4.0,134.12,134.07,231.6308]
[1740745147304,4.0,134.13,134.07,231.6308]
[1740745147627,4.0,134.13,134.09,312.0]
[1740745147830,0.03,134.13,134.09,312.0]
[1740745148236,0.03,134.13,134.1,7.24]
[1740745148440,0.03,134.13,134.11,18.79181043]
[1740745148728,0.03,134.13,134.12,20.35684007]
[1740745149036,0.03,134.19,134.14,18.79181043]
[1740745149217,0.03,134.19,134.15,7.24]
[1740745149405,0.03,134.19,134.15,8.8045996]
[1740745150028,0.03,134.19,134.15,8.8046506]
[1740745150242,0.03,134.19,134.16,18.79181043]
[1740745151113,0.03,134.19,134.17,319.4532]
[1740745151309,0.03,134.19,134.17,537.5532]
[1740745152008,0.03,134.19,134.17,530.1]
[1740745153325,2.03,134.19,134.17,218.1]
[1740745153523,4.03,134.19,134.17,218.1]
[1740745153718,4.03,134.19,134.14,7.4546]
[1740745153719,4.0,134.16,134.13,218.1]
[1740745154021,4.0,134.16,134.11,343.74]
[1740745154401,4.0,134.14,134.11,343.74]
[1740745154621,4.0,134.13,134.11,81.6]
[1740745155322,2.0,134.12,134.11,81.6]
[1740745158934,2.0,134.13,134.11,81.6]
[1740745159931,2.0,134.12,134.11,81.6]
[1740745160812,2.0,134.12,134.11,81.663]
[1740745161008,4.0,134.12,134.11,0.063]
[1740745162633,2.0,134.12,134.11,0.063]
[1740745163433,5.4912,134.12,134.11,0.063]
[1740745164829,24.14084886,134.12,134.11,0.063]
[1740745165847,24.14084886,134.12,134.06,0.063]
[1740745165848,4.14216157,134.07,134.06,0.063]
[1740745166022,4.0,134.07,134.06,0.063]
[1740745166225,8.90093515,134.12,134.06,0.063]
[1740745166226,2.0,134.08,134.06,0.063]
[1740745166830,2.0,134.07,134.06,0.063]
[1740745167836,5.4917,134.07,134.06,0.063]
[1740745179247,24.14134886,134.07,134.06,0.063]
[1740745179449,25.84938672,134.07,134.06,0.063]
[1740745179640,25.84938672,134.07,134.06,0.0001]
[1740745180537,25.70722515,134.07,134.06,0.0001]
[1740745181529,25.84938672,134.07,134.06,0.0001]
[1740745186125,4.0,134.05,134.04,0.0001]
[1740745186438,24.21552515,134.05,134.04,0.0001]
[1740745187468,25.84958672,134.05,134.04,0.0001]
[1740745187786,27.84958672,134.05,134.04,0.0001]
[1740745187960,4.0,133.98,133.97,0.063]
[1740745189054,24.14234886,133.98,133.97,0.063]
[1740745189247,5.4927,133.98,133.97,0.063]
[1740745189447,7.05857629,133.98,133.97,0.063]
[1740745191574,5.4927,133.98,133.97,0.063]
[1740745191864,4.0,133.98,133.97,0.063]
[1740745192241,2.0,133.98,133.97,0.063]
[1740745192444,2.0,133.99,133.97,0.063]
[1740745192644,2.0,133.98,133.97,0.063]
[1740745194187,2.0,134.0,133.97,0.063]
[1740745195045,2.0,133.99,133.97,0.063]
[1740745195652,2.0,133.99,133.97,312.063]
[1740745196273,4.0,133.98,133.97,312.063]
[1740745196845,2.0,133.98,133.97,0.063]
[1740745197041,2.0,133.99,133.97,0.063]
[1740745197240,2.0,134.0,133.97,0.063]
[1740745197771,4.0,134.0,133.97,0.063]
[1740745198158,2.0,134.0,133.97,0.063]
[1740745199268,4.0,134.01,133.97,0.063]
[1740745199748,101.44964886,134.05,133.97,312.063]
[1740745199749,4.0,134.02,133.97,312.063]
[1740745199954,4.0,134.02,133.98,6.3557]
[1740745200264,2.0,134.04,133.98,87.9557]
[1740745200458,2.0,134.03,133.98,224.4557]
[1740745200656,4.0,134.04,133.97,0.063]
[1740745200863,2.0,134.02,133.97,0.063]
[1740745201058,2.0,134.03,133.97,18.85481043]
[1740745201460,2.0,134.03,133.98,7.4638]
[1740745201669,2.0,134.03,133.98,225.5638]
[1740745202265,4.0,134.04,133.98,225.5638]
[1740745202470,2.0,134.04,133.98,225.5638]
[1740745202776,4.0,134.04,133.98,225.5638]
[1740745202982,4.0,134.03,133.98,218.1]
[1740745203383,2.0,134.03,134.0,312.0]
[1740745203676,2.0,134.04,134.0,312.0]
[1740745203882,2.0,134.04,134.0,319.06]
[1740745204086,2.0,134.06,134.01,24.91021043]
[1740745204271,2.0,134.08,134.01,244.57646112]
[1740745204581,4.0,134.1,134.02,1.5582]
[1740745204782,4.0,134.1,134.02,221.2242027]
[1740745204956,2.0,134.09,134.02,219.6582]
[1740745205158,4.0,134.1,134.04,18.79181043]
[1740745205366,4.0,134.1,134.03,1.56597561]
[1740745205367,2.0,134.07,134.05,7.06]
[1740745205692,4.0,134.06,134.05,7.06]
[1740745205854,2.0,134.06,134.05,7.06]
[1740745206057,2.0,134.08,134.05,7.06]
[1740745206358,2.0,134.11,134.05,96.1198]
[1740745206584,2.0,134.11,134.05,232.6198]
[1740745206766,2.0,134.09,134.05,225.16]
[1740745207159,4.0,134.08,134.05,225.16]
[1740745207372,4.0,134.08,134.05,88.66]
[1740745207679,2.0,134.06,134.03,393.6]
[1740745207878,4.0,134.06,134.03,81.6]
[1740745208053,2.0,134.06,134.03,81.6]
[1740745208255,4.0,134.07,134.03,81.6]
[1740745208473,4.0,134.08,134.03,81.6]
[1740745208783,2.0,134.06,134.03,81.6]
[1740745209559,4.0,134.06,134.03,81.6]
[1740745210860,4.0,134.07,134.03,81.6]
[1740745211193,4.0,134.08,134.03,81.6]
[1740745211364,2.063,134.09,134.03,225.5609]
[1740745211566,5.5545,134.09,134.03,225.5609]
[1740745211760,4.0,134.07,134.03,218.1]
[1740745212179,2.0,134.06,134.03,218.1]
[1740745212462,2.0,134.08,134.03,218.1]
[1740745212661,3.5545,134.09,134.04,18.79181043]
[1740745212662,0.063,134.09,134.04,18.79181043]
[1740745212875,0.063,134.09,134.05,1.5107]
[1740745213070,0.063,134.09,134.08,18.79181043]
[1740745213279,0.063,134.09,134.08,245.53718354]
[1740745213480,0.063,134.09,134.08,251.43001043]
[1740745213862,0.063,134.09,134.08,563.43001043]
[1740745214284,0.063,134.09,134.08,555.97181043]
[1740745214488,0.063,134.09,134.08,563.43001043]
[1740745215688,0.063,134.09,134.08,555.97181043]
[1740745215896,0.063,134.09,134.08,537.18]
[1740745216868,0.063,134.09,134.08,400.68]
[1740745217391,0.063,134.09,134.08,426.93001043]
[1740745217696,0.063,134.09,134.08,114.93001043]
[1740745217892,0.063,134.09,134.08,252.99516098]
[1740745218062,0.063,134.09,134.08,251.43001043]
[1740745219083,0.063,134.12,134.1,18.79181043]
[1740745219385,0.063,134.12,134.11,20.35684741]
[1740745220069,0.063,134.12,134.11,18.79181043]
[1740745220271,0.063,134.12,134.11,27.81349531]
[1740745220665,0.063,134.12,134.11,339.81349531]
[1740745220862,0.0001,134.12,134.11,556.34831043]
[1740745221287,0.0001,134.12,134.11,419.84831043]
[1740745221889,0.0001,134.12,134.11,81.6]
[1740745223782,2.0001,134.12,134.11,81.6]
[1740745224777,2.0,134.08,134.05,81.6]
[1740745225082,2.0,134.09,134.05,81.6]
[1740745225284,2.0,134.11,134.05,81.6]
[1740745225592,3.6024,134.12,134.06,20.3575893]
[1740745225773,0.0001,134.12,134.06,238.45737406]
[1740745225974,0.0001,134.12,134.08,0.14216157]
[1740745226269,0.0001,134.12,134.09,7.08]
[1740745226693,0.0001,134.12,134.1,18.79181043]
[1740745226987,0.0001,134.12,134.09,7.08]
[1740745227988,0.0001,134.12,134.11,312.0]
[1740745229780,0.0001,134.12,134.09,88.68]
[1740745231873,2.0001,134.12,134.09,88.68]
[1740745232089,0.0001,134.12,134.09,88.68]
[1740745232292,2.0,134.1,134.09,81.6]
[1740745232504,2.0,134.09,134.07,81.6]
[1740745232702,2.0,134.09,134.05,7.06]
[1740745233202,2.0,134.06,134.05,7.06]
[1740745233494,4.0,134.04,134.03,0.03]
[1740745234478,7.05787629,134.04,134.03,0.03]
[1740745236095,108.64968672,134.04,133.97,312.063]
[1740745236300,4.0,133.98,133.97,312.063]
[1740745236503,4.0,133.98,133.97,0.063]
[1740745237601,5.4927,133.98,133.97,0.063]
[1740745237983,4.0,133.98,133.97,0.063]
[1740745238705,2.0,133.98,133.97,0.063]
[1740745238908,4.0,133.99,133.97,0.063]
[1740745239106,5.5851,134.0,133.97,0.063]
[1740745239281,82.8,134.01,133.97,0.063]
[1740745239282,4.0,134.01,133.97,0.063]
[1740745239481,2.0,134.0,133.97,312.063]
[1740745239711,2.0,134.01,133.97,312.063]
[1740745240080,4.0,134.02,133.97,0.063]
[1740745240399,2.0,134.0,133.97,0.063]
[1740745240600,4.0,134.0,133.97,0.063]
[1740745242998,4.0,134.0,133.97,312.063]
[1740745244106,2.0,133.98,133.97,312.063]
[1740745244306,4.0,133.98,133.97,0.063]
[1740745246219,5.4927,133.98,133.97,0.063]
[1740745246400,2.0,133.99,133.97,0.063]
[1740745246604,4.0,134.01,133.97,0.063]
[1740745246806,4.0,134.02,133.97,218.30516157]
[1740745246987,4.0,134.05,133.98,7.02]
[1740745247295,2.0,134.05,134.01,312.0]
[1740745247482,3.5157,134.07,134.01,312.0]
[1740745247483,5.5157,134.07,134.01,393.6]
[1740745247681,2.0,134.07,134.02,18.79181043]
[1740745248104,2.0,134.07,134.01,225.5618]
[1740745248105,2.0,134.06,134.01,218.1]
[1740745248698,2.0,134.06,134.01,225.562]
[1740745248896,2.0,134.06,134.01,218.1]
[1740745250023,4.03,134.09,134.02,20.35810307]
[1740745250207,4.03,134.09,134.04,18.79181043]
[1740745250208,2.03,134.09,134.04,18.79181043]
[1740745250509,0.03,134.09,134.04,238.4576788]
[1740745250698,0.03,134.09,134.07,312.0]
[1740745250890,0.03,134.09,134.07,393.6]
[1740745251296,0.03,134.09,134.07,81.6]
[1740745251709,0.03,134.09,134.07,89.0583]
[1740745251915,0.03,134.09,134.07,90.6238628]
[1740745252301,0.03,134.09,134.07,83.1655628]
[1740745252911,0.03,134.09,134.07,81.6]
[1740745254414,4.0,134.08,134.03,88.2052]
[1740745254715,4.0,134.07,134.03,95.2052]
[1740745255014,4.0,134.07,134.03,88.6]
[1740745255214,2.0,134.06,134.03,88.6]
[1740745255416,2.0,134.07,134.03,88.6]
[1740745255599,4.0,134.07,134.03,88.6]
[1740745256102,2.0,134.07,134.03,88.6]
[1740745256302,5.4917,134.08,134.03,88.6]
[1740745256493,4.0,134.08,134.03,96.0606]
[1740745256918,2.0,134.08,134.03,96.0606]
[1740745257298,4.03,134.09,134.03,96.0606]
[1740745257498,4.03,134.09,134.03,544.5606]
[1740745258015,4.03,134.09,134.03,232.5606]
[1740745258509,4.03,134.09,134.04,27.81800536]
[1740745258510,0.063,134.07,134.04,27.81800536]
[1740745259712,0.063,134.07,134.06,20.0]
[1740745259915,0.063,134.07,134.06,101.6]
[1740745261008,2.063,134.07,134.06,393.6]
[1740745261193,2.063,134.07,134.06,81.6]
[1740745261393,0.063,134.07,134.06,81.6]
[1740745262604,0.063,134.07,134.06,89.0593]
[1740745262794,0.063,134.07,134.06,107.85111043]
[1740745263421,0.063,134.07,134.06,244.35111043]
[1740745264123,0.03,134.09,134.08,0.14216157]
[1740745264307,0.03,134.09,134.08,27.33708362]
[1740745264622,0.03,134.09,134.08,34.79528362]
[1740745265824,0.0001,134.12,134.11,38.79181043]
[1740745266122,0.0001,134.12,134.11,40.35660872]
[1740745266624,0.0001,134.12,134.11,265.91310872]
[1740745266822,0.0001,134.12,134.11,264.34831043]
[1740745267724,0.0001,134.12,134.11,576.34831043]
[1740745269123,0.0001,134.12,134.11,568.89181043]
[1740745269718,0.0001,134.12,134.11,576.34831043]
[1740745276621,0.0001,134.13,134.12,24.91901043]
[1740745276829,0.0001,134.13,134.12,26.48340925]
[1740745277954,0.0001,134.13,134.12,244.58340925]
[1740745278152,0.0001,134.13,134.12,243.01901043]
[1740745278360,0.0001,134.13,134.12,242.87684886]
[1740745279361,0.0001,134.13,134.12,250.47501043]
[1740745279560,0.0001,134.13,134.12,272.92501043]
[1740745279725,0.0001,134.13,134.12,584.92501043]
[1740745280229,0.0001,134.13,134.12,562.47501043]
[1740745280429,0.0001,134.13,134.12,584.92501043]
[1740745280749,0.0001,134.13,134.12,562.47501043]
[1740745281328,0.0001,134.13,134.12,584.92501043]
[1740745283049,0.0001,134.13,134.12,556.20564886]
[1740745283241,0.0001,134.13,134.12,556.34781043]
[1740745283442,0.0001,134.13,134.12,556.20564886]
[1740745283648,0.0001,134.13,134.12,556.34781043]
[1740745283844,0.0001,134.13,134.12,548.89181043]
[1740745284053,0.0001,134.13,134.12,548.74964886]
[1740745284241,0.0001,134.13,134.12,548.89181043]
[1740745284749,0.0001,134.13,134.12,393.6]
[1740745285049,0.0001,134.13,134.12,81.6]
[1740745287035,0.0001,134.13,134.12,89.056]
[1740745287240,0.0001,134.13,134.12,101.95692547]
[1740745287544,0.0001,134.13,134.12,100.39181043]
[1740745287740,0.0001,134.13,134.12,81.6]
[1740745287946,0.0001,134.13,134.12,393.6]
[1740745290947,0.0001,134.13,134.12,412.39181043]
[1740745291267,0.0001,134.13,134.12,244.34781043]
[1740745292431,0.0001,134.13,134.12,250.36881043]
[1740745292758,0.0001,134.13,134.12,251.91061043]
[1740745292945,0.03,134.19,134.17,20.14216157]
[1740745293255,0.03,134.19,134.18,27.19391996]